[Event "Blixt-SM 2021"]
[Site "Elite Hotel Marina Plaza, Kungstorget 6, Helsingborg, Sweden"]
[Date "2021.11.14"]
[Round "11.8"]
[White "Troedsson, Anton"]
[Black "Hansen, Anders"]
[Result "1-0"]
[TimeControl "3 minutes + 2 seconds per move."]
[WhiteFideId "1746006"]
[BlackFideId "1708155"]
[WhiteElo "2104"]
[BlackElo "2027"]

1. Nf3 {[%clk 00:03:03]} d5 {[%clk 00:02:59]} {[%emt 00:00:05]} 2. b3 {[%clk
00:03:04]} {[%emt 00:00:01]} f6 {[%clk 00:02:53]} {[%emt 00:00:08]} 3. d4
{[%clk 00:03:04]} e6 {[%clk 00:02:52]} {[%emt 00:00:03]} 4. Bb2 {[%clk
00:03:06]} {[%emt 00:00:02]} c5 {[%clk 00:02:45]} {[%emt 00:00:08]} 5. c3
{[%clk 00:02:57]} {[%emt 00:00:11]} Nc6 {[%clk 00:02:46]} {[%emt 00:00:01]} 6.
g3 {[%clk 00:02:57]} {[%emt 00:00:02]} Bd6 {[%clk 00:02:38]} {[%emt 00:00:10]}
7. Bg2 {[%clk 00:02:58]} {[%emt 00:00:01]} Nge7 {[%clk 00:02:37]} {[%emt
00:00:03]} 8. O-O {[%clk 00:02:56]} {[%emt 00:00:04]} O-O {[%clk 00:02:34]}
{[%emt 00:00:05]} 9. Nbd2 {[%clk 00:02:57]} cxd4 {[%clk 00:02:35]} {[%emt
00:00:02]} 10. cxd4 {[%clk 00:02:55]} {[%emt 00:00:03]} Qa5 {[%clk 00:02:22]}
{[%emt 00:00:15]} 11. a3 {[%clk 00:02:53]} {[%emt 00:00:04]} Bd7 {[%clk
00:02:12]} {[%emt 00:00:11]} 12. Rc1 {[%clk 00:02:33]} {[%emt 00:00:22]} Rac8
{[%clk 00:02:10]} {[%emt 00:00:05]} 13. e4 {[%clk 00:02:28]} {[%emt 00:00:07]}
Kh8 {[%clk 00:02:06]} {[%emt 00:00:06]} 14. Qe2 {[%clk 00:02:27]} {[%emt
00:00:04]} Rfe8 {[%clk 00:01:47]} {[%emt 00:00:20]} 15. e5 {[%clk 00:02:19]}
{[%emt 00:00:09]} fxe5 {[%clk 00:01:44]} {[%emt 00:00:05]} 16. dxe5 {[%clk
00:02:20]} {[%emt 00:00:02]} Bb8 {[%clk 00:01:42]} {[%emt 00:00:05]} 17. Ng5
{[%clk 00:02:20]} {[%emt 00:00:01]} g6 {[%clk 00:01:20]} {[%emt 00:00:24]} 18.
b4 {[%clk 00:02:12]} {[%emt 00:00:11]} Qb6 {[%clk 00:01:12]} {[%emt 00:00:10]}
19. Nb3 {[%clk 00:02:09]} {[%emt 00:00:05]} Kg7 {[%clk 00:00:39]} {[%emt
00:00:36]} 20. Nc5 {[%clk 00:02:07]} {[%emt 00:00:04]} Rc7 {[%clk 00:00:06]}
{[%emt 00:00:34]} 21. Ncxe6+ {[%clk 00:02:06]} {[%emt 00:00:02]} Bxe6 {[%clk
00:00:07]} {[%emt 00:00:02]} 22. Nxe6+ {[%clk 00:02:06]} {[%emt 00:00:02]} Kf7
{[%clk 00:00:07]} {[%emt 00:00:02]} 23. Nxc7 {[%clk 00:01:51]} {[%emt
00:00:18]} Qxc7 {[%clk 00:00:06]} {[%emt 00:00:02]} 24. e6+ {[%clk 00:01:51]}
{[%emt 00:00:01]} Kg8 {[%clk 00:00:05]} {[%emt 00:00:03]} 25. b5 {[%clk
00:01:50]} {[%emt 00:00:03]} 1-0

[Event "Blixt-SM 2021"]
[Site "Elite Hotel Marina Plaza, Kungstorget 6, Helsingborg, Sweden"]
[Date "2021.11.14"]
[Round "13.6"]
[White "Tornberg, Carlos"]
[Black "Neretljak, Nedzad"]
[Result "1-0"]
[TimeControl "3 minutes + 2 seconds per move."]
[WhiteFideId "1733478"]
[BlackFideId "1713132"]
[WhiteElo "2053"]
[BlackElo "2148"]

1. e4 {[%clk 00:03:03]} {[%emt 00:00:52]} e6 {[%clk 00:03:02]} {[%emt
00:00:02]} 2. d4 {[%clk 00:03:04]} d5 {[%clk 00:03:03]} {[%emt 00:00:02]} 3. e5
{[%clk 00:03:06]} {[%emt 00:00:01]} c5 4. c3 Nc6 {[%clk 00:03:03]} {[%emt
00:00:02]} 5. Nf3 {[%clk 00:03:07]} a6 {[%clk 00:03:03]} {[%emt 00:00:04]} 6.
Bd3 {[%clk 00:03:03]} {[%emt 00:00:05]} b5 {[%clk 00:03:04]} 7. O-O {[%clk
00:03:04]} {[%emt 00:00:01]} Bb7 {[%clk 00:03:00]} {[%emt 00:00:07]} 8. Nbd2
{[%clk 00:03:01]} {[%emt 00:00:04]} Be7 {[%clk 00:02:58]} {[%emt 00:00:04]} 9.
Re1 {[%clk 00:03:00]} {[%emt 00:00:04]} Qb6 {[%clk 00:02:54]} {[%emt 00:00:06]}
10. dxc5 {[%clk 00:02:48]} {[%emt 00:00:14]} Bxc5 {[%clk 00:02:53]} {[%emt
00:00:03]} 11. Qe2 {[%clk 00:02:49]} {[%emt 00:00:02]} Nh6 {[%clk 00:02:47]}
{[%emt 00:00:07]} 12. Nb3 {[%clk 00:02:42]} {[%emt 00:00:09]} Be7 {[%clk
00:02:46]} {[%emt 00:00:03]} 13. Be3 {[%clk 00:02:32]} {[%emt 00:00:13]} Qc7
{[%clk 00:02:44]} {[%emt 00:00:04]} 14. Bc5 {[%clk 00:02:33]} g6 {[%clk
00:02:30]} {[%emt 00:00:16]} 15. h3 {[%clk 00:02:27]} {[%emt 00:00:08]} Nf5
{[%clk 00:02:30]} {[%emt 00:00:02]} 16. Bxf5 {[%clk 00:02:23]} {[%emt
00:00:06]} gxf5 {[%clk 00:02:31]} {[%emt 00:00:01]} 17. a4 {[%clk 00:02:21]}
{[%emt 00:00:04]} bxa4 {[%clk 00:02:24]} {[%emt 00:00:08]} 18. Rxa4 {[%clk
00:02:21]} {[%emt 00:00:02]} O-O {[%clk 00:02:15]} {[%emt 00:00:11]} 19. Be3
{[%clk 00:02:07]} {[%emt 00:00:16]} Kh8 {[%clk 00:02:08]} {[%emt 00:00:09]} 20.
Bg5 {[%clk 00:01:54]} {[%emt 00:00:15]} Rg8 {[%clk 00:02:00]} {[%emt 00:00:10]}
21. Qe3 {[%clk 00:00:57]} {[%emt 00:00:58]} Rg6 {[%clk 00:02:01]} {[%emt
00:00:01]} 22. Bf4 {[%clk 00:00:43]} {[%emt 00:00:16]} Rag8 {[%clk 00:01:59]}
{[%emt 00:00:04]} 23. Bg3 {[%clk 00:00:42]} {[%emt 00:00:03]} Bc8 {[%clk
00:01:50]} {[%emt 00:00:11]} 24. Nh4 {[%clk 00:00:42]} {[%emt 00:00:02]} Bxh4
{[%clk 00:01:38]} {[%emt 00:00:14]} 25. Rxh4 {[%clk 00:00:42]} {[%emt
00:00:01]} Ne7 {[%clk 00:01:26]} {[%emt 00:00:15]} 26. Nd4 {[%clk 00:00:38]}
{[%emt 00:00:05]} R8g7 {[%clk 00:01:27]} {[%emt 00:00:02]} 27. Rh6 {[%clk
00:00:25]} {[%emt 00:00:14]} Ng8 {[%clk 00:01:28]} {[%emt 00:00:02]} 28. Rxg6
{[%clk 00:00:25]} {[%emt 00:00:02]} Rxg6 {[%clk 00:01:27]} {[%emt 00:00:03]} 29.
Ra1 {[%clk 00:00:20]} {[%emt 00:00:07]} Qc4 {[%clk 00:01:26]} {[%emt 00:00:02]}
30. Qe2 {[%clk 00:00:18]} {[%emt 00:00:05]} Qc7 {[%clk 00:01:15]} {[%emt
00:00:13]} 31. Ra3 {[%clk 00:00:16]} {[%emt 00:00:04]} Ne7 {[%clk 00:01:05]}
{[%emt 00:00:11]} 32. Qe3 {[%clk 00:00:12]} {[%emt 00:00:06]} Nc6 {[%clk
00:01:01]} {[%emt 00:00:06]} 33. Nb3 {[%clk 00:00:10]} {[%emt 00:00:03]} Qb8
{[%clk 00:00:51]} {[%emt 00:00:11]} 34. Qe2 {[%clk 00:00:05]} {[%emt 00:00:08]}
h6 {[%clk 00:00:46]} {[%emt 00:00:07]} 35. Nc5 {[%clk 00:00:06]} {[%emt
00:00:01]} Qb6 {[%clk 00:00:45]} {[%emt 00:00:03]} 36. Kh1 {[%clk 00:00:04]}
{[%emt 00:00:04]} Kh7 {[%clk 00:00:46]} {[%emt 00:00:01]} 37. Nxa6 {[%clk
00:00:04]} {[%emt 00:00:01]} Na5 {[%clk 00:00:42]} {[%emt 00:00:07]} 38. Nb4
{[%clk 00:00:05]} {[%emt 00:00:02]} Nc4 {[%clk 00:00:40]} {[%emt 00:00:03]} 39.
Ra8 {[%clk 00:00:06]} Qb7 {[%clk 00:00:40]} {[%emt 00:00:02]} 40. Ra1 {[%clk
00:00:06]} {[%emt 00:00:01]} Bd7 {[%clk 00:00:39]} {[%emt 00:00:04]} 41. Rd1
{[%clk 00:00:07]} Qb8 {[%clk 00:00:31]} {[%emt 00:00:09]} 42. b3 {[%clk
00:00:08]} {[%emt 00:00:01]} Na5 {[%clk 00:00:29]} {[%emt 00:00:05]} 43. Qc2
{[%clk 00:00:08]} {[%emt 00:00:02]} Qc7 {[%clk 00:00:28]} {[%emt 00:00:03]} 44.
Nd3 {[%clk 00:00:08]} {[%emt 00:00:01]} Bb5 {[%clk 00:00:26]} {[%emt 00:00:04]}
45. Nf4 {[%clk 00:00:09]} {[%emt 00:00:01]} Rg5 {[%clk 00:00:23]} {[%emt
00:00:05]} 46. Rc1 {[%clk 00:00:06]} {[%emt 00:00:05]} Qxe5 {[%clk 00:00:18]}
{[%emt 00:00:08]} 47. Nh5 {[%clk 00:00:06]} {[%emt 00:00:01]} Qe4 {[%clk
00:00:15]} {[%emt 00:00:05]} 48. Nf6+ {[%clk 00:00:07]} {[%emt 00:00:01]} Kg6
{[%clk 00:00:16]} 49. Nxe4 {[%clk 00:00:08]} {[%emt 00:00:01]} fxe4 {[%clk
00:00:17]} 50. Qd2 {[%clk 00:00:06]} {[%emt 00:00:04]} Bd3 {[%clk 00:00:17]}
{[%emt 00:00:02]} 51. b4 {[%clk 00:00:06]} {[%emt 00:00:01]} Nc6 {[%clk
00:00:18]} {[%emt 00:00:01]} 52. Qe3 {[%clk 00:00:06]} {[%emt 00:00:03]} Ne7
{[%clk 00:00:18]} {[%emt 00:00:02]} 53. b5 {[%clk 00:00:06]} Bxb5 {[%emt
00:00:03]} 54. Qc5 {[%clk 00:00:07]} Nf5 {[%clk 00:00:16]} {[%emt 00:00:05]} 55.
Qxb5 {[%emt 00:00:02]} e3 {[%clk 00:00:15]} {[%emt 00:00:02]} 56. Qe2 {[%clk
00:00:08]} {[%emt 00:00:02]} Rxg3 {[%clk 00:00:12]} {[%emt 00:00:05]} 1-0

[Event "Blixt-SM 2021"]
[Site "Elite Hotel Marina Plaza, Kungstorget 6, Helsingborg, Sweden"]
[Date "2021.11.14"]
[Round "1.2"]
[White "Jepson, Christian"]
[Black "Strom-Engdahl, Alexander"]
[Result "1-0"]
[TimeControl "3 minutes + 2 seconds per move."]
[WhiteTitle "IM"]
[WhiteFideId "1701185"]
[BlackFideId "1741586"]
[WhiteElo "2412"]
[BlackElo "1783"]

1. c4 {[%clk 00:03:02]} c5 {[%clk 00:03:02]} {[%emt 00:00:02]} 2. Nc3 {[%clk
00:03:03]} Nc6 {[%clk 00:03:04]} 3. g3 {[%clk 00:03:03]} {[%emt 00:00:03]} g6
{[%clk 00:03:04]} 4. Bg2 {[%clk 00:03:05]} Bg7 {[%clk 00:03:05]} 5. e3 {[%clk
00:03:05]} {[%emt 00:00:04]} d6 {[%clk 00:02:58]} {[%emt 00:00:09]} 6. Nge2
{[%clk 00:03:06]} e5 {[%clk 00:02:59]} {[%emt 00:00:02]} 7. O-O {[%clk
00:03:03]} {[%emt 00:00:05]} Nge7 {[%clk 00:02:59]} {[%emt 00:00:02]} 8. d4
{[%clk 00:03:01]} {[%emt 00:00:04]} cxd4 {[%clk 00:02:51]} {[%emt 00:00:09]} 9.
exd4 {[%clk 00:03:02]} {[%emt 00:00:01]} O-O {[%clk 00:02:44]} {[%emt
00:00:08]} 10. d5 {[%clk 00:03:00]} {[%emt 00:00:05]} Nb8 {[%clk 00:02:44]}
{[%emt 00:00:02]} 11. b3 {[%clk 00:02:32]} {[%emt 00:00:30]} Nd7 {[%clk
00:02:21]} {[%emt 00:00:25]} 12. Ba3 {[%clk 00:02:32]} {[%emt 00:00:02]} Nb6
{[%clk 00:02:07]} {[%emt 00:00:16]} 13. Ne4 {[%clk 00:02:17]} {[%emt 00:00:18]}
Nf5 {[%clk 00:01:56]} {[%emt 00:00:12]} 14. N2c3 {[%clk 00:02:12]} {[%emt
00:00:07]} h5 {[%clk 00:01:37]} {[%emt 00:00:21]} 15. Nb5 {[%clk 00:02:09]}
{[%emt 00:00:05]} a5 {[%clk 00:01:21]} {[%emt 00:00:19]} 16. Nexd6 {[%clk
00:02:01]} {[%emt 00:00:10]} Nxd6 {[%clk 00:01:19]} {[%emt 00:00:03]} 17. Bxd6
{[%clk 00:02:01]} Re8 {[%clk 00:01:20]} {[%emt 00:00:03]} 18. Bc7 {[%clk
00:02:01]} {[%emt 00:00:01]} Qf6 {[%clk 00:01:21]} 19. Nd6 {[%clk 00:01:48]}
{[%emt 00:00:17]} Rf8 {[%clk 00:01:15]} {[%emt 00:00:08]} 20. Ne4 {[%clk
00:01:41]} {[%emt 00:00:09]} Qe7 {[%clk 00:00:23]} {[%emt 00:00:54]} 21. Bxb6
{[%clk 00:01:41]} {[%emt 00:00:02]} Bg4 {[%clk 00:00:24]} 22. f3 {[%clk
00:01:40]} {[%emt 00:00:04]} Bf5 {[%clk 00:00:22]} {[%emt 00:00:04]} 23. Bc5
{[%clk 00:01:40]} {[%emt 00:00:02]} 1-0

[Event "Blixt-SM 2021"]
[Site "Elite Hotel Marina Plaza, Kungstorget 6, Helsingborg, Sweden"]
[Date "2021.11.14"]
[Round "2.9"]
[White "Storme, Joel"]
[Black "Troedsson, Anton"]
[Result "0-1"]
[TimeControl "3 minutes + 2 seconds per move."]
[WhiteFideId "1749021"]
[BlackFideId "1746006"]
[WhiteElo "1588"]
[BlackElo "2104"]

1. f4 {[%clk 00:03:03]} d5 {[%clk 00:03:01]} {[%emt 00:00:04]} 2. Nf3 {[%clk
00:03:04]} g6 {[%clk 00:03:02]} {[%emt 00:00:01]} 3. d4 {[%clk 00:03:04]}
{[%emt 00:00:02]} Bg7 {[%clk 00:03:02]} {[%emt 00:00:02]} 4. b3 {[%clk
00:03:05]} {[%emt 00:00:01]} Nf6 {[%clk 00:03:01]} {[%emt 00:00:02]} 5. Bb2
{[%clk 00:03:04]} {[%emt 00:00:03]} O-O {[%clk 00:03:01]} {[%emt 00:00:02]} 6.
h3 {[%clk 00:02:56]} {[%emt 00:00:10]} Ne4 {[%clk 00:02:55]} {[%emt 00:00:08]}
7. Nbd2 {[%clk 00:02:48]} {[%emt 00:00:10]} Ng3 {[%clk 00:02:55]} {[%emt
00:00:03]} 8. Rg1 {[%clk 00:02:48]} {[%emt 00:00:01]} Nf5 {[%clk 00:02:55]}
{[%emt 00:00:03]} 9. Qc1 {[%clk 00:02:27]} {[%emt 00:00:23]} b6 {[%clk
00:02:31]} {[%emt 00:00:26]} 10. g4 {[%clk 00:02:20]} {[%emt 00:00:08]} Ne3
{[%clk 00:02:26]} {[%emt 00:00:07]} 11. Kf2 {[%clk 00:02:13]} {[%emt 00:00:10]}
Nxf1 {[%emt 00:00:11]} 12. Rxf1 {[%clk 00:02:10]} Bb7 {[%clk 00:02:03]} {[%emt
00:00:19]} 13. Re1 {[%clk 00:02:04]} {[%emt 00:00:09]} Qd6 {[%clk 00:01:59]}
{[%emt 00:00:06]} 14. Nf1 {[%clk 00:01:58]} {[%emt 00:00:07]} e6 {[%clk
00:01:37]} {[%emt 00:00:25]} 15. e3 {[%clk 00:01:36]} {[%emt 00:00:24]} Nd7
{[%clk 00:01:15]} {[%emt 00:00:24]} 16. Rb1 {[%clk 00:01:24]} {[%emt 00:00:14]}
c5 {[%clk 00:01:14]} {[%emt 00:00:02]} 17. c4 {[%clk 00:01:02]} {[%emt
00:00:24]} Rac8 {[%clk 00:01:14]} {[%emt 00:00:02]} 18. Qd2 {[%clk 00:00:50]}
{[%emt 00:00:15]} dxc4 {[%clk 00:01:10]} {[%emt 00:00:06]} 19. dxc5 {[%clk
00:00:38]} {[%emt 00:00:14]} Qxd2+ {[%clk 00:01:03]} {[%emt 00:00:09]} 20.
N1xd2 {[%clk 00:00:37]} {[%emt 00:00:02]} c3 {[%clk 00:01:01]} {[%emt
00:00:04]} 21. Nc4 {[%clk 00:00:18]} {[%emt 00:00:22]} Bxf3 {[%clk 00:00:55]}
{[%emt 00:00:07]} 22. Kxf3 {[%clk 00:00:15]} {[%emt 00:00:06]} cxb2 {[%clk
00:00:55]} {[%emt 00:00:01]} 23. cxb6 {[%clk 00:00:10]} {[%emt 00:00:08]} Nxb6
{[%clk 00:00:56]} {[%emt 00:00:02]} 24. Nxb2 {[%clk 00:00:10]} {[%emt
00:00:01]} Rc2 {[%clk 00:00:53]} {[%emt 00:00:04]} 25. Nd3 {[%clk 00:00:09]}
{[%emt 00:00:04]} Rd8 {[%clk 00:00:51]} {[%emt 00:00:04]} 26. Red1 {[%clk
00:00:07]} {[%emt 00:00:05]} Rxa2 {[%clk 00:00:43]} {[%emt 00:00:10]} 27. Ne5
{[%clk 00:00:06]} {[%emt 00:00:03]} Rxd1 {[%clk 00:00:41]} {[%emt 00:00:04]} 28.
Rxd1 {[%clk 00:00:06]} Bxe5 {[%clk 00:00:41]} {[%emt 00:00:02]} 29. Rd8+ {[%clk
00:00:06]} {[%emt 00:00:02]} Kg7 {[%clk 00:00:42]} 30. fxe5 {[%clk 00:00:07]}
{[%emt 00:00:01]} Rb2 {[%clk 00:00:41]} {[%emt 00:00:04]} 31. Rb8 {[%clk
00:00:07]} {[%emt 00:00:02]} Rxb3 {[%clk 00:00:41]} {[%emt 00:00:02]} 32. Rb7
{[%clk 00:00:08]} {[%emt 00:00:01]} a5 {[%clk 00:00:41]} {[%emt 00:00:02]} 33.
Ra7 {[%clk 00:00:08]} {[%emt 00:00:02]} a4 {[%clk 00:00:42]} 34. Ke2 {[%clk
00:00:08]} {[%emt 00:00:01]} a3 {[%clk 00:00:43]} {[%emt 00:00:02]} 35. Kd2
{[%clk 00:00:07]} {[%emt 00:00:02]} Nc4+ {[%clk 00:00:41]} {[%emt 00:00:04]} 36.
Kc2 {[%clk 00:00:06]} {[%emt 00:00:02]} Rxe3 {[%clk 00:00:38]} {[%emt
00:00:06]} 0-1

[Event "Blixt-SM 2021"]
[Site "Elite Hotel Marina Plaza, Kungstorget 6, Helsingborg, Sweden"]
[Date "2021.11.14"]
[Round "4.7"]
[White "Wellevit, Tomas"]
[Black "Nimander, Max"]
[Result "1-0"]
[TimeControl "3 minutes + 2 seconds per move."]
[WhiteFideId "1731963"]
[BlackFideId "1746677"]
[WhiteElo "2113"]
[BlackElo "1917"]

1. e4 {[%clk 00:03:04]} {[%emt 00:06:45]} d5 {[%clk 00:03:02]} {[%emt
00:00:02]} 2. exd5 {[%clk 00:03:05]} {[%emt 00:00:01]} Nf6 {[%clk 00:03:03]} 3.
Nf3 {[%clk 00:03:05]} {[%emt 00:00:01]} Bg4 {[%clk 00:03:03]} {[%emt 00:00:02]}
4. Be2 {[%clk 00:03:04]} {[%emt 00:00:03]} Nxd5 {[%clk 00:03:00]} {[%emt
00:00:06]} 5. d3 {[%clk 00:03:05]} Nc6 {[%clk 00:02:57]} {[%emt 00:00:05]} 6.
O-O {[%clk 00:03:04]} {[%emt 00:00:03]} e6 {[%clk 00:02:51]} {[%emt 00:00:09]}
7. Nbd2 {[%clk 00:03:03]} {[%emt 00:00:03]} Bc5 {[%clk 00:02:38]} {[%emt
00:00:15]} 8. Ne4 {[%clk 00:03:04]} Bb6 {[%clk 00:02:36]} {[%emt 00:00:04]} 9.
h3 {[%clk 00:02:59]} {[%emt 00:00:07]} Bh5 {[%clk 00:02:31]} {[%emt 00:00:07]}
10. c3 {[%clk 00:02:55]} {[%emt 00:00:05]} h6 {[%clk 00:02:13]} {[%emt
00:00:19]} 11. d4 {[%clk 00:02:54]} {[%emt 00:00:03]} Bg6 {[%clk 00:02:04]}
{[%emt 00:00:12]} 12. Ng3 {[%clk 00:02:52]} {[%emt 00:00:05]} Nce7 {[%clk
00:02:03]} {[%emt 00:00:02]} 13. Ne5 {[%clk 00:02:51]} {[%emt 00:00:03]} c5
{[%clk 00:01:47]} {[%emt 00:00:19]} 14. Bb5+ {[%clk 00:02:48]} {[%emt
00:00:05]} Kf8 {[%clk 00:01:46]} {[%emt 00:00:03]} 15. Nd7+ {[%clk 00:02:23]}
{[%emt 00:00:26]} Kg8 {[%clk 00:01:43]} {[%emt 00:00:05]} 16. Nxc5 {[%clk
00:02:20]} {[%emt 00:00:06]} a6 {[%clk 00:01:32]} {[%emt 00:00:13]} 17. Bd3
{[%clk 00:02:16]} {[%emt 00:00:05]} Qc7 {[%clk 00:01:18]} {[%emt 00:00:16]} 18.
Bxg6 {[%clk 00:01:55]} {[%emt 00:00:23]} Nxg6 {[%clk 00:01:17]} {[%emt
00:00:04]} 19. Nce4 {[%clk 00:01:52]} {[%emt 00:00:04]} Kh7 {[%clk 00:01:08]}
{[%emt 00:00:11]} 20. Nh5 {[%clk 00:01:38]} {[%emt 00:00:16]} Rhf8 {[%clk
00:00:56]} {[%emt 00:00:15]} 21. Kh1 {[%clk 00:01:07]} {[%emt 00:00:33]} e5
{[%clk 00:00:57]} {[%emt 00:00:01]} 22. dxe5 {[%clk 00:00:58]} {[%emt
00:00:11]} Qxe5 {[%clk 00:00:53]} {[%emt 00:00:06]} 23. Neg3 {[%clk 00:00:51]}
{[%emt 00:00:09]} Rad8 {[%clk 00:00:47]} {[%emt 00:00:08]} 24. Qc2 {[%clk
00:00:51]} {[%emt 00:00:01]} Kg8 {[%clk 00:00:47]} {[%emt 00:00:02]} 25. Bd2
{[%clk 00:00:46]} {[%emt 00:00:07]} f5 {[%clk 00:00:32]} {[%emt 00:00:17]} 26.
c4 {[%clk 00:00:43]} {[%emt 00:00:05]} Ndf4 {[%clk 00:00:29]} {[%emt 00:00:05]}
27. Bc3 {[%clk 00:00:38]} {[%emt 00:00:08]} Bd4 {[%clk 00:00:27]} {[%emt
00:00:04]} 28. Rae1 {[%clk 00:00:34]} {[%emt 00:00:06]} Qc5 {[%clk 00:00:23]}
{[%emt 00:00:05]} 29. Bxd4 {[%clk 00:00:30]} {[%emt 00:00:06]} Rxd4 {[%clk
00:00:24]} {[%emt 00:00:01]} 30. b3 {[%clk 00:00:26]} {[%emt 00:00:06]} Rfd8
{[%clk 00:00:25]} {[%emt 00:00:01]} 31. Qc3 {[%clk 00:00:26]} {[%emt 00:00:02]}
Qc7 {[%clk 00:00:23]} {[%emt 00:00:03]} 32. Nxf5 {[%clk 00:00:25]} {[%emt
00:00:03]} Rd3 {[%clk 00:00:24]} {[%emt 00:00:01]} 33. Qxg7+ {[%clk 00:00:24]}
{[%emt 00:00:02]} Qxg7 {[%clk 00:00:24]} {[%emt 00:00:02]} 34. Nhxg7 {[%clk
00:00:25]} {[%emt 00:00:01]} R8d7 {[%clk 00:00:12]} {[%emt 00:00:14]} 35. Ne6
{[%clk 00:00:24]} {[%emt 00:00:03]} Nxe6 {[%clk 00:00:06]} {[%emt 00:00:09]} 36.
Rxe6 {[%clk 00:00:25]} {[%emt 00:00:01]} Nf4 {[%clk 00:00:06]} {[%emt
00:00:02]} 37. Rxh6 {[%clk 00:00:21]} {[%emt 00:00:06]} Rd2 {[%clk 00:00:06]}
{[%emt 00:00:03]} 38. Rf6 {[%clk 00:00:17]} {[%emt 00:00:05]} Nh5 {[%clk
00:00:06]} {[%emt 00:00:02]} 39. Rg6+ {[%clk 00:00:13]} {[%emt 00:00:06]} Kf8
{[%clk 00:00:07]} {[%emt 00:00:02]} 40. Rg5 {[%clk 00:00:14]} Nf4 {[%clk
00:00:07]} {[%emt 00:00:01]} 41. Nh6 {[%clk 00:00:14]} {[%emt 00:00:02]} Ne6
{[%clk 00:00:06]} {[%emt 00:00:03]} 42. Rg8+ {[%clk 00:00:13]} {[%emt
00:00:03]} Ke7 {[%clk 00:00:07]} {[%emt 00:00:01]} 43. Re1 {[%clk 00:00:13]}
{[%emt 00:00:02]} Kd6 {[%clk 00:00:09]} {[%emt 00:00:01]} 44. Rg6 {[%clk
00:00:14]} Re7 {[%clk 00:00:10]} {[%emt 00:00:01]} 45. Nf5+ {[%clk 00:00:14]}
Kd7 {[%clk 00:00:11]} 46. Nxe7 {[%clk 00:00:15]} {[%emt 00:00:01]} 1-0